bitfinex/quotes_ETHUSD_20260313
["timestamp","ask_amount","ask_price","bid_price","bid_amount"]
[1773442980907,1.19852461,2085.9,2085.3,1.525]
[1773442982810,1.19852461,2085.9,2085.4,1.19881077]
[1773442984109,1.73406432,2086.0,2085.4,1.19881077]
[1773442984833,0.001,2086.1,2085.4,1.19881077]
[1773442984991,1.19941958,2086.1,2085.4,1.19881077]
[1773442986003,0.001,2086.1,2085.6,0.75446761]
[1773442986889,0.001,2086.1,2085.7,1.19863834]
[1773442988915,0.001,2086.5,2085.9,0.75446761]
[1773442989113,0.001,2086.7,2086.2,0.75446761]
[1773442990818,0.001,2086.7,2086.3,1.19829362]
[1773442991325,0.001,2086.7,2086.2,1.95277715]
[1773442991491,0.001,2086.7,2086.1,1.19836607]
[1773442991692,0.53655655,2086.7,2086.1,1.19836607]
[1773442992692,0.001,2086.7,2086.2,0.75446761]
[1773442992892,0.001,2086.7,2086.3,1.19829362]
[1773442994616,1.19893069,2087.0,2086.3,1.19829362]
[1773442994939,1.73331603,2087.3,2086.6,1.19812134]
[1773442995230,1.73331603,2087.3,2086.7,1.53]
[1773442995390,0.53555655,2087.2,2086.7,1.53]
[1773442996821,1.73338092,2087.2,2086.7,2.72805429]
[1773442997721,1.73338092,2087.2,2086.7,1.53]
[1773442998129,1.73336441,2087.2,2086.7,2.72805318]
[1773443000327,1.19780786,2087.2,2086.7,2.72805318]
[1773443001211,4.79092814,2087.3,2086.7,2.77597573]
[1773443001408,4.79092814,2087.3,2086.7,2.72805318]
[1773443003033,5.32648469,2087.3,2086.7,2.72805318]
[1773443003211,5.32648469,2087.3,2086.9,0.0011]
[1773443003612,0.001,2087.0,2086.9,0.0011]
[1773443005814,0.53555655,2087.6,2086.9,1.19904911]
[1773443007335,0.53555655,2087.6,2086.9,1.24696707]
[1773443007901,1.19758223,2087.6,2086.9,1.24696707]
[1773443010022,1.73305207,2087.7,2086.9,1.24696707]
[1773443011236,0.001,2087.8,2086.9,3.12919219]
[1773443012317,0.53555655,2088.3,2086.9,3.12919219]
[1773443012515,0.53555655,2088.3,2086.9,1.19904911]
[1773443012711,0.53555655,2088.3,2086.9,0.0011]
[1773443013311,0.53555655,2088.3,2086.9,1.19904884]
[1773443013512,0.53555655,2088.3,2086.9,0.0011]
[1773443014118,0.53555655,2087.8,2086.9,0.0011]
[1773443016423,0.53555655,2087.5,2086.9,0.0011]
[1773443018745,0.53555655,2087.3,2086.9,0.0011]
[1773443018953,0.53555655,2087.3,2086.7,1.53]
[1773443019248,0.53555655,2087.3,2086.8,0.04792026]
[1773443019957,0.53555655,2087.3,2086.7,2.72803622]
[1773443020253,0.53555655,2087.3,2086.8,0.04792026]
[1773443020432,1.19766216,2087.4,2086.8,0.04792026]
[1773443020618,5.3256552,2087.5,2086.9,1.19794911]
[1773443020619,1.7326347,2087.5,2086.9,1.19794911]
[1773443020825,1.7326347,2087.5,2087.0,0.04791566]
[1773443022055,1.7326347,2087.5,2086.9,1.19794911]
[1773443023169,1.7326347,2087.5,2086.8,4.79180437]
[1773443023751,0.53500655,2087.4,2086.8,4.79180437]
[1773443025565,0.53500655,2087.3,2086.8,4.79180437]
[1773443028436,0.53500655,2087.5,2086.9,0.04791796]
[1773443028742,0.53500655,2087.5,2087.0,0.0011]
[1773443029540,1.19764472,2087.5,2087.0,0.0011]
[1773443029739,0.53500655,2087.4,2087.0,0.0011]
[1773443031560,1.19771954,2087.3,2087.0,0.0011]
[1773443031743,0.53500655,2087.2,2086.8,0.0011]
[1773443032935,0.53500655,2087.2,2086.9,1.524]
[1773443034238,0.53445655,2087.0,2086.9,1.524]
[1773443035166,0.53445655,2087.0,2086.6,0.0011]
[1773443036357,0.53445655,2086.8,2086.7,1.519]
[1773443038744,1.73246306,2086.8,2086.7,1.519]
[1773443039351,0.53445655,2086.8,2086.7,1.519]
[1773443042871,1.73246306,2086.8,2086.7,1.519]
[1773443043057,1.73246306,2086.8,2086.6,0.0011]
[1773443043257,0.53445655,2086.8,2086.6,0.0011]
[1773443043866,1.73247739,2086.8,2086.6,0.0011]
[1773443044275,1.73247739,2086.8,2086.7,1.528]
[1773443045678,1.19798679,2086.9,2086.7,1.528]
[1773443045973,0.53445655,2086.8,2086.6,0.0011]
[1773443047293,1.73250217,2086.8,2086.7,1.53]
[1773443049177,1.73250217,2086.8,2086.6,0.0011]
[1773443049479,0.53445655,2086.7,2086.6,0.0011]
[1773443050676,0.53445655,2086.7,2086.6,1.5181]
[1773443051185,0.53445655,2086.7,2086.5,0.0011]
[1773443051484,1.73096736,2086.7,2086.5,0.0011]
[1773443051654,0.53365655,2086.6,2086.5,0.0011]
[1773443052682,0.53365655,2086.6,2086.5,1.5211]
[1773443053386,1.73169485,2086.8,2086.5,1.5211]
[1773443054788,1.73169485,2086.8,2086.7,0.0011]
[1773443056235,1.73161589,2086.9,2086.7,0.0011]
[1773443057592,4.79157766,2087.0,2086.7,0.04902255]
[1773443057593,0.53365655,2087.0,2086.7,0.04902255]
[1773443058372,1.73155925,2087.0,2086.7,0.0011]
[1773443060471,1.19784083,2087.1,2086.7,0.0011]
[1773443060795,1.19784083,2087.1,2086.7,0.04902255]
[1773443060977,1.73149738,2087.1,2086.7,0.04902255]
[1773443066700,1.73149738,2087.1,2086.7,1.24708554]
[1773443066899,0.001,2087.2,2086.7,1.24708554]
[1773443067824,0.001,2087.2,2086.9,0.0011]
[1773443068103,0.001,2087.2,2087.0,1.532]
[1773443069903,0.001,2087.2,2087.0,2.72987148]
[1773443070196,0.001,2087.2,2087.0,1.532]
[1773443070700,0.001,2087.2,2087.0,2.72988905]
[1773443071903,0.53465655,2087.2,2086.9,0.0011]
[1773443073302,1.73244207,2087.2,2087.0,1.534]
[1773443074604,0.53465655,2087.2,2087.0,1.534]
[1773443075818,0.001,2087.6,2087.0,2.73185918]
[1773443075999,0.53365655,2087.8,2087.2,0.75286143]
[1773443076800,0.53365655,2087.8,2087.1,0.04791337]
[1773443076801,0.49994568,2088.2,2087.6,0.45965166]
[1773443077000,0.49994568,2088.4,2087.6,0.45965166]
[1773443077201,0.49994568,2088.4,2087.7,1.97965166]
[1773443077618,0.49994568,2088.2,2087.7,1.52]
[1773443078005,0.49994568,2088.2,2087.7,1.97965166]
[1773443078309,0.49994568,2088.2,2087.8,0.45965166]
[1773443079603,1.19726066,2088.1,2087.8,0.45965166]
[1773443081126,0.001,2088.0,2087.8,0.45965166]
[1773443084621,0.001,2088.0,2087.8,1.19742652]
[1773443084920,0.49994568,2087.9,2087.3,0.45965166]
[1773443086696,1.1974327,2087.8,2087.4,0.04790648]
[1773443087018,1.74526444,2087.9,2087.4,1.76799131]
[1773443087213,1.19832565,2088.0,2087.5,0.52242854]
[1773443087413,1.19832565,2088.0,2087.6,0.57033043]
[1773443089323,0.001,2088.0,2087.6,0.57033043]
[1773443093803,0.001,2088.0,2087.8,0.0011]
[1773443094003,0.001,2088.0,2087.9,1.526]
[1773443100435,0.54871805,2088.0,2087.9,1.526]
[1773443100638,0.54771805,2087.8,2087.5,0.0011]
[1773443100863,1.19737535,2087.9,2086.9,1.5331]
[1773443100864,0.54771805,2087.4,2086.9,1.5331]
[1773443101141,0.54771805,2087.4,2086.7,0.0011]
[1773443101932,0.54771805,2087.4,2086.8,0.50606892]
[1773443102317,0.54771805,2087.4,2086.9,1.97606892]
[1773443103418,1.19771954,2087.3,2086.9,1.97606892]
[1773443106642,1.19771954,2087.3,2086.9,1.47]
[1773443106947,1.19771954,2087.3,2087.1,0.0011]
[1773443107947,1.19771954,2087.3,2086.9,1.4711]
[1773443107948,1.74543759,2087.3,2086.9,1.4711]
[1773443108343,1.74543759,2087.3,2087.0,1.5]
[1773443109119,1.74543759,2087.3,2086.9,0.0011]
[1773443109763,2.49779055,2087.3,2086.7,0.0011]
[1773443109967,0.54771805,2087.2,2086.7,0.0011]
[1773443110546,0.54771805,2087.2,2086.8,1.483]
[1773443110745,0.54771805,2087.0,2086.8,1.483]
[1773443111052,1.19783431,2087.1,2086.8,1.483]
[1773443111655,1.74555236,2087.1,2086.8,1.483]
[1773443112021,0.54771805,2087.1,2086.8,1.483]
[1773443112961,1.19789171,2087.0,2086.8,1.483]
[1773443113158,1.74560976,2087.0,2086.7,0.0011]
[1773443113802,0.54771805,2086.9,2086.7,0.0011]
[1773443114280,0.54771805,2086.9,2086.8,1.49]
[1773443114484,0.54771805,2086.9,2086.7,0.0011]
[1773443115512,0.59562009,2087.1,2086.7,0.50716892]
[1773443115780,5.54343905,2087.3,2086.7,0.50716892]
[1773443115781,1.74530831,2087.6,2086.9,0.50606892]
[1773443116075,0.04790204,2087.5,2087.1,0.50606892]
[1773443116268,1.74530831,2087.6,2087.1,0.50606892]
[1773443116468,1.19844844,2087.8,2087.1,0.50606892]
[1773443116799,1.24635048,2087.8,2087.1,0.50606892]
[1773443117597,1.24635048,2087.8,2087.3,0.50606892]
[1773443120079,0.001,2087.4,2087.3,1.70378846]
[1773443120894,0.001,2087.4,2087.3,1.97706892]
[1773443122214,0.04890204,2087.8,2087.4,0.4973903]
[1773443122377,1.24633814,2087.8,2087.4,0.4973903]
[1773443122914,0.04890204,2087.8,2087.4,0.4973903]
[1773443123207,0.001,2087.8,2087.4,0.4973903]
[1773443123566,0.001,2088.0,2087.4,0.4973903]
[1773443124290,0.001,2088.0,2087.6,0.4973903]
[1773443127490,1.72480547,2088.5,2087.9,0.4973903]
[1773443127670,0.52774634,2088.4,2088.0,1.501]
[1773443130196,1.72489234,2088.3,2087.7,0.4973903]
[1773443130517,0.52774634,2088.2,2087.7,0.4973903]
[1773443131505,0.52774634,2088.2,2087.8,1.511]
[1773443132176,1.19726066,2088.1,2087.9,1.512]
[1773443132491,1.725007,2088.1,2087.9,1.512]
[1773443132691,0.001,2088.0,2087.9,1.512]
[1773443133069,0.001,2088.0,2087.6,0.4973903]
[1773443133276,1.19724496,2088.2,2087.8,0.4973903]
[1773443133613,1.19801314,2088.6,2087.9,0.54528531]
[1773443134275,1.19801314,2088.6,2088.1,0.4973903]
[1773443135205,0.001,2088.6,2088.1,0.4973903]
[1773443136106,0.52874634,2088.6,2088.0,1.197318]
[1773443136299,0.52874634,2088.6,2088.1,1.513]
[1773443136499,0.52774634,2088.4,2088.1,1.513]
[1773443137301,0.52774634,2088.4,2088.2,1.515]
[1773443137880,1.19703136,2088.5,2088.2,1.515]
[1773443138190,1.72572284,2088.6,2088.2,2.0123903]
[1773443138395,0.001,2088.6,2088.2,2.0123903]
[1773443138583,0.001,2088.6,2088.3,1.6945363]
[1773443141106,0.52874634,2088.6,2088.2,1.515]
[1773443143508,1.19703136,2088.5,2088.2,1.515]
[1773443145280,0.001,2088.6,2088.2,3.20958315]
[1773443145488,0.001,2088.6,2088.3,1.2450279]
[1773443145686,0.001,2088.4,2088.3,1.2450279]
[1773443145904,0.001,2088.6,2088.3,1.2450279]
[1773443146906,0.001,2088.6,2088.2,3.209548]
[1773443148213,0.001,2088.6,2088.3,0.04788584]
[1773443151990,0.001,2088.6,2088.3,1.24501417]
[1773443152189,0.5092673,2088.9,2088.4,0.50241267]
[1773443152395,0.5092673,2088.9,2088.5,0.55029392]
[1773443152585,1.1967937,2089.0,2088.5,0.55029392]
[1773443153291,1.1967937,2089.0,2088.5,1.74731265]
[1773443153486,1.706061,2089.0,2088.5,1.74731265]
[1773443153906,0.5092673,2088.9,2088.3,1.6995241]
[1773443154085,0.5092673,2088.9,2088.6,1.511]
[1773443155713,1.70609097,2088.9,2088.6,1.511]
[1773443156720,0.5092673,2088.8,2088.6,1.511]
[1773443157599,1.70613691,2088.8,2088.6,1.511]
[1773443163227,0.5092673,2088.8,2088.6,1.511]
[1773443164296,1.7061306,2088.8,2088.6,1.511]
[1773443165624,0.5092673,2088.8,2088.6,1.511]
[1773443165833,1.70610912,2088.9,2088.6,1.511]
[1773443166702,1.70610912,2088.9,2088.6,1.55887896]
[1773443166898,1.19676745,2089.0,2088.6,1.511]
[1773443167208,1.19676745,2089.0,2088.7,0.50241267]
[1773443167407,1.70603475,2089.0,2088.7,0.50241267]
[1773443168709,0.5092673,2089.0,2088.7,0.50241267]
[1773443169029,6.91013226,2089.7,2088.8,0.49932224]
[1773443169030,0.5092673,2089.5,2088.8,0.49932224]
[1773443170427,0.5092673,2089.5,2088.6,1.69938671]
[1773443170724,0.5092673,2089.5,2088.9,1.528]
[1773443171221,0.5092673,2089.3,2088.7,0.50241267]
[1773443171526,0.5092673,2089.3,2088.9,0.50241267]
[1773443171731,0.5092673,2089.3,2088.7,0.50127039]
[1773443172099,0.5102673,2089.3,2088.7,0.50127039]
[1773443172300,0.5102673,2089.3,2088.8,1.529]
[1773443172501,0.5102673,2089.3,2088.8,2.03141267]
[1773443173733,1.19663028,2089.2,2088.8,2.03141267]
[1773443175855,1.19663028,2089.2,2088.9,0.04787208]
[1773443176216,1.70684551,2089.3,2088.9,0.55028475]
[1773443182021,1.70688107,2089.3,2088.9,0.55028475]
[1773443184538,0.001,2089.3,2089.1,0.49011199]
[1773443190733,1.69970008,2089.3,2088.9,1.68690279]
[1773443190933,1.69970008,2089.3,2089.0,0.49011199]
[1773443191448,0.50212707,2089.2,2088.8,0.0011]
[1773443192748,0.50212707,2089.2,2088.9,1.509]
[1773443192935,1.19668756,2089.1,2088.9,1.509]
[1773443193336,1.19668756,2089.1,2088.9,1.99911199]
[1773443194329,1.19668756,2089.1,2088.9,1.509]
[1773443194527,1.69881463,2089.1,2088.9,1.509]
[1773443197453,0.50212707,2089.0,2088.9,1.509]
[1773443198347,0.50212707,2089.0,2088.9,1.5101]
[1773443199257,1.19769403,2089.1,2088.9,1.5101]
[1773443199558,1.6998211,2089.1,2088.9,1.5101]
[1773443202857,1.6998211,2089.1,2088.6,1.19803633]
[1773443202858,0.50212707,2089.0,2088.6,0.0011]
[1773443203966,0.50212707,2089.0,2088.0,0.0011]
[1773443203967,0.50700597,2088.7,2088.0,0.0011]
[1773443204146,0.50700597,2088.3,2087.9,0.0011]
[1773443204346,0.50700597,2088.3,2087.6,0.0011]
[1773443205058,0.50700597,2088.0,2087.6,0.0011]
[1773443206566,0.51255456,2088.2,2087.7,0.01086007]
[1773443206744,0.51255456,2088.2,2087.8,1.38]
[1773443209163,0.51255456,2088.2,2087.9,1.19737535]
[1773443209367,0.51255456,2088.2,2087.8,1.38]
[1773443209567,0.51255456,2088.1,2087.8,1.38]
[1773443211349,0.50988429,2087.9,2087.8,1.38]
[1773443211546,0.50988429,2087.9,2087.6,0.0011]
[1773443212755,0.50988429,2087.9,2087.8,0.0011]
[1773443212968,0.50988429,2087.9,2087.6,1.3411]
[1773443213169,0.50988429,2087.9,2087.5,0.0011]
[1773443213342,0.50988429,2087.7,2087.4,0.0011]
[1773443214880,0.50988429,2087.7,2087.4,1.2721]
[1773443215075,0.50988429,2088.1,2087.4,1.2721]
[1773443215446,0.50988429,2088.0,2087.5,1.19760479]
[1773443215775,0.50988429,2088.0,2087.5,1.24550898]
[1773443218450,0.50988429,2087.9,2087.5,1.24550898]
[1773443219241,0.50988429,2087.9,2087.5,1.19760479]
[1773443220153,0.50988429,2087.8,2087.4,2.46971872]
[1773443220343,0.50988429,2087.8,2087.4,1.2721]
[1773443220550,0.50988429,2087.8,2087.4,0.0011]
[1773443220751,0.50988429,2087.8,2087.1,4.7922985]
[1773443220752,0.50988429,2087.8,2087.1,0.0011]
[1773443220946,0.50988429,2087.8,2087.1,1.19892868]
[1773443222177,0.50988429,2087.6,2087.2,1.376]
[1773443224179,0.50988429,2087.5,2087.2,1.376]
[1773443224849,0.50988429,2087.5,2087.3,0.0011]
[1773443226181,4.79011019,2087.7,2087.3,0.0011]
[1773443226182,0.50988429,2087.7,2087.3,0.0011]
[1773443229060,0.001,2087.8,2087.3,0.04900878]
[1773443230579,0.50988429,2088.1,2087.3,0.0011]
[1773443230757,0.50988429,2088.1,2087.4,1.50546588]
[1773443231665,0.50988429,2088.1,2087.5,0.04246384]
[1773443233477,1.70720229,2088.0,2087.6,1.19754742]
[1773443234889,0.50988429,2088.0,2087.6,1.19754742]
[1773443235066,4.78838209,2088.4,2087.6,1.19754742]
[1773443235067,0.50988429,2088.4,2087.6,1.19754742]
[1773443236190,1.70697691,2088.4,2087.6,1.19754742]
[1773443237877,1.70697691,2088.4,2087.5,4.79041081]
[1773443238077,0.001,2088.2,2087.5,4.79041081]
[1773443238271,0.001,2088.2,2087.6,0.04790189]
[1773443238871,0.50988429,2088.4,2087.6,0.04790189]
[1773443239196,0.46825162,2088.4,2087.7,0.02580458]
[1773443239383,0.50988429,2088.6,2087.7,0.02580458]
[1773443239585,0.50988429,2088.6,2087.5,1.22340936]
[1773443239786,0.50988429,2088.2,2087.3,0.0011]
[1773443241201,0.50988429,2088.2,2087.4,1.466]
[1773443241911,0.4870981,2088.0,2087.5,1.19760479]
[1773443242704,0.4870981,2088.0,2087.5,1.24550897]
[1773443244476,1.68442006,2088.0,2087.5,1.24550897]
[1773443244874,1.6844238,2088.0,2087.5,1.24550897]
[1773443245100,0.4870981,2088.0,2087.5,1.27131349]
[1773443245292,0.4870981,2088.0,2087.6,0.02580452]
[1773443247879,0.4870981,2088.0,2087.7,1.19749006]
[1773443249691,0.4870981,2088.0,2087.7,1.22329454]
[1773443250409,0.4870981,2088.0,2087.7,1.19749006]
[1773443251094,0.4870981,2088.0,2087.8,0.0011]
[1773443252504,0.001,2088.2,2087.8,0.0011]
[1773443252805,0.4880981,2088.2,2087.8,0.02690445]
[1773443253117,0.4870981,2088.1,2087.6,1.19752231]
[1773443253820,0.4870981,2088.1,2087.5,1.19865775]
[1773443254625,1.197318,2088.0,2087.5,1.19865775]
[1773443254790,0.4865481,2087.9,2087.5,1.19865775]
[1773443255411,0.4865481,2087.9,2087.5,0.0011]
[1773443258392,0.4865481,2087.8,2087.5,0.0011]
[1773443260334,0.4865481,2087.8,2087.5,0.04900419]
[1773443260621,0.4865481,2087.8,2087.5,1.24656188]
[1773443262321,0.4865481,2087.8,2087.5,1.27346627]
[1773443262494,1.68391063,2088.0,2087.6,0.02690438]
[1773443263125,0.4865481,2088.0,2087.6,1.22441136]
[1773443263325,0.4865481,2088.0,2087.7,0.02690438]
[1773443264216,1.68386712,2088.0,2087.7,0.02690438]
[1773443264403,1.68386712,2088.0,2087.8,0.0011]
[1773443264596,1.68386712,2088.0,2087.9,1.523]
[1773443264802,0.4865481,2088.0,2087.9,1.523]
[1773443264999,0.4875481,2088.2,2087.9,1.523]
[1773443265328,0.4865481,2088.1,2087.9,1.523]
[1773443266622,0.4865481,2088.1,2087.8,0.0011]
[1773443266816,0.4865481,2088.1,2087.5,0.0011]
[1773443267802,0.4865481,2087.9,2087.6,1.506]
[1773443270306,0.4865481,2087.7,2087.6,1.506]
[1773443270706,0.4865481,2087.7,2087.5,0.0011]
[1773443271927,0.4865481,2087.7,2087.6,1.514]
[1773443272728,1.68403816,2087.7,2087.6,1.514]
[1773443273223,0.4865481,2087.6,2087.3,0.0011]
[1773443274129,0.4865481,2087.6,2087.1,0.0011]
[1773443274949,0.4865481,2087.4,2086.9,0.0011]
[1773443275105,0.4865481,2087.4,2086.7,0.0011]
[1773443276035,0.4865481,2087.4,2086.7,0.02800429]
[1773443276208,0.4865481,2087.4,2086.8,1.506]
[1773443277443,0.4865481,2087.2,2086.8,1.506]
[1773443278737,0.4865481,2087.2,2087.0,0.0011]
[1773443279632,1.68438241,2087.1,2087.0,0.0011]
[1773443280110,0.4865481,2087.6,2087.0,0.0011]
[1773443281314,0.4865481,2087.6,2087.0,0.02800426]
[1773443282536,1.19760479,2087.5,2087.0,1.22585133]
[1773443282711,0.4865481,2087.4,2087.0,1.22585133]
[1773443284542,0.4865481,2087.7,2087.2,1.19777692]
[1773443284737,1.6840423,2087.7,2087.3,0.02690424]
[1773443285450,1.6840423,2087.7,2087.4,1.519]
[1773443286223,0.4865481,2087.7,2087.4,1.519]
[1773443287243,0.4865481,2087.7,2087.4,1.54590423]
[1773443287820,1.68403882,2087.7,2087.4,1.54590423]
[1773443289640,0.4875481,2087.9,2087.4,2.74353326]
[1773443289837,0.4875481,2087.9,2087.5,0.02690421]
[1773443291450,0.001,2087.9,2087.7,0.0269042]
[1773443291639,0.4875481,2088.2,2087.7,0.0259042]
[1773443291830,0.4875481,2088.2,2087.7,0.0251042]
[1773443292033,0.4867481,2088.2,2087.7,0.0251042]
[1773443294161,0.4867481,2088.2,2087.9,0.02692113]
[1773443294458,0.4867481,2088.2,2088.0,1.522]
[1773443295333,1.19741521,2088.2,2088.0,1.522]
[1773443295525,0.48653963,2088.1,2088.0,1.522]
[1773443297232,0.0002,2088.2,2088.0,1.522]
[1773443297429,0.48673963,2088.2,2088.0,1.522]
[1773443298539,0.0002,2088.2,2088.0,1.522]
[1773443299538,0.48673963,2088.2,2088.0,1.522]
[1773443300840,0.0002,2088.2,2088.0,2.74623514]
[1773443301662,1.68354312,2088.6,2088.1,0.02692109]
[1773443301863,0.48653963,2088.6,2088.1,0.02692109]
[1773443302368,1.68351552,2088.6,2088.1,0.02692109]
[1773443302771,1.68351552,2088.6,2088.2,0.02692108]
[1773443303146,0.48653963,2088.5,2088.1,1.1972127]
[1773443303872,0.48653963,2088.5,2088.2,0.02802108]
[1773443304975,0.48653963,2088.5,2088.2,1.22520852]
[1773443305159,1.68345973,2088.7,2088.3,0.02692107]
[1773443305671,0.48653963,2088.6,2088.3,0.02692107]
[1773443306078,1.68344754,2088.8,2088.3,0.02692107]
[1773443306264,0.48653963,2088.8,2088.3,0.02692107]
[1773443307554,0.48653963,2088.7,2088.3,1.19709945]
[1773443308563,0.48653963,2088.7,2088.2,0.02802106]
[1773443308882,0.48653963,2088.7,2088.3,1.526]
[1773443309558,0.48653963,2088.6,2088.3,1.526]
[1773443312082,0.48653963,2088.5,2088.3,1.526]
[1773443312668,0.48653963,2088.5,2088.2,0.0011]
[1773443313986,0.48653963,2088.5,2088.2,1.5141]
[1773443314199,0.48653963,2088.9,2088.3,0.02692104]
[1773443314380,0.48653963,2088.8,2088.3,0.02692104]
[1773443315485,0.48653963,2088.9,2088.3,0.7521904]
[1773443315674,0.48753963,2089.0,2088.4,0.02692103]
[1773443316682,0.001,2088.6,2088.5,1.19703136]
[1773443316897,0.001,2088.6,2088.5,1.22395239]
[1773443318472,0.001,2088.6,2088.4,0.02692102]
[1773443320793,0.001,2088.6,2088.2,1.19829558]
[1773443320794,0.48653963,2088.5,2088.2,1.19829558]
[1773443320979,0.48653963,2088.5,2088.3,1.52]
[1773443326691,0.001,2088.6,2088.3,2.74406653]
[1773443327064,0.001,2088.6,2088.4,0.02692099]
[1773443328691,0.001,2088.6,2088.4,1.22396628]
[1773443329193,0.001,2088.6,2088.5,0.02692098]
[1773443330470,0.48653963,2088.8,2088.5,0.02692098]
[1773443330693,0.48653963,2088.8,2088.5,1.22394998]
[1773443336402,1.19682395,2088.9,2088.4,4.78943048]
[1773443336403,0.45995654,2088.7,2088.4,1.19818868]
[1773443336780,0.43313016,2088.7,2088.4,1.19818868]
[1773443339006,0.43313016,2088.7,2088.4,0.0011]
[1773443339007,0.47496664,2088.6,2088.4,0.0011]
[1773443340702,0.47496664,2088.5,2088.4,0.0011]
[1773443340907,0.47496664,2088.5,2088.2,0.0011]
[1773443341705,0.47496664,2088.5,2088.0,0.0011]
[1773443342010,0.47496664,2088.5,2088.1,1.506]
[1773443342209,0.47496664,2088.5,2087.9,0.0011]
[1773443342883,0.47496664,2088.3,2088.2,0.0011]
[1773443343086,0.47496664,2088.3,2087.9,0.0011]
[1773443343295,0.47596664,2088.3,2088.0,1.49]
[1773443343496,0.47596664,2088.3,2088.0,1.4911]
[1773443344102,0.47596664,2088.3,2087.9,0.0011]
[1773443345585,0.47496664,2088.1,2087.9,1.4871]
[1773443347621,0.47496664,2087.9,2087.7,0.0011]
[1773443348324,0.47496664,2087.9,2087.3,1.28024688]
[1773443349386,0.47496664,2087.9,2087.4,0.0825304]
[1773443349591,0.47496664,2087.7,2087.0,0.0011]
[1773443349789,0.47496664,2087.7,2087.2,0.08253039]
[1773443351922,0.47496664,2087.5,2087.1,1.501]
[1773443353324,0.47496664,2087.5,2087.0,0.0011]
[1773443353701,0.47496664,2087.5,2086.8,0.08473038]
[1773443353900,0.47496664,2087.3,2086.8,0.08473038]
[1773443354708,0.47496664,2087.3,2086.9,1.481]
[1773443356428,1.67274356,2087.2,2087.0,0.0011]
[1773443356727,0.47496664,2087.1,2087.0,0.0011]
[1773443357109,0.47496664,2087.1,2086.8,0.0011]
[1773443357420,0.47496664,2087.1,2086.5,0.0011]
[1773443358727,0.47496664,2086.9,2086.5,1.4901]
[1773443361416,0.48325603,2086.7,2086.2,0.0011]
[1773443363133,0.48325603,2086.7,2086.2,1.4961]
[1773443363614,1.68137737,2086.6,2086.2,1.4961]
[1773443363814,0.75191816,2087.0,2086.2,1.4961]
[1773443363815,1.68114774,2087.0,2086.4,0.08583036]
[1773443364056,0.48325603,2086.9,2086.4,0.08583036]
[1773443365819,1.19800651,2086.8,2086.5,0.08473036]
[1773443367529,1.68124781,2086.9,2086.5,0.08473036]
[1773443368239,1.68120967,2086.9,2086.5,1.28286001]
[1773443368640,1.68120967,2086.9,2086.6,0.0011]
[1773443370139,1.68120967,2086.9,2086.6,0.08583035]
[1773443372754,0.10616832,2089.5,2086.7,0.08473034]
[1773443372755,1.68101794,2087.3,2086.7,0.08473034]
[1773443373052,0.48325603,2087.2,2086.7,0.08473034]
[1773443373625,0.48325603,2087.2,2086.8,1.517]
[1773443374035,0.48325603,2087.1,2086.6,0.0011]
[1773443374626,0.48325603,2086.9,2086.6,0.0011]
[1773443377445,0.48325603,2086.9,2086.4,0.08583034]
[1773443377446,1.68126254,2086.8,2086.4,0.08583034]
[1773443377845,0.48325603,2086.7,2086.4,0.0011]
[1773443378719,0.48325603,2086.7,2086.4,0.08583033]
[1773443379448,0.48325603,2086.6,2086.4,0.0011]
[1773443380947,1.19810071,2086.7,2086.4,0.0011]
[1773443381141,1.19810071,2086.7,2086.4,0.08583033]
[1773443381341,1.19810071,2086.7,2086.6,0.0011]
[1773443381738,5.27536605,2086.8,2086.6,0.08583033]
[1773443381739,0.001,2086.8,2086.6,0.08583033]
[1773443384356,0.48425603,2086.8,2086.6,0.0011]
[1773443388772,0.001,2086.8,2086.6,0.07719175]
[1773443389941,0.001,2086.8,2086.6,1.27527795]
[1773443390343,0.001,2086.8,2086.7,0.07609175]
[1773443390954,1.66041488,2087.1,2086.7,0.07609175]
[1773443391935,1.66041488,2087.1,2086.8,1.524]
[1773443393559,5.03295512,2087.6,2086.9,0.07609174]
[1773443393560,0.48753575,2087.6,2086.9,0.07609174]
[1773443394248,1.19749006,2087.8,2087.3,0.75191816]
[1773443394249,0.48753575,2087.8,2087.3,0.75191816]
[1773443394433,0.001,2088.3,2087.3,0.75191816]
[1773443394434,0.48753575,2088.2,2087.5,0.07609174]
[1773443394642,0.001,2088.3,2087.7,0.07609174]
[1773443394935,0.48853575,2088.3,2087.7,0.07609174]
[1773443395143,1.6856988,2088.3,2087.7,0.07609174]
[1773443395365,0.48853575,2088.3,2087.7,0.07609174]
[1773443395570,1.68568392,2088.3,2087.7,0.07609174]
[1773443395744,0.48753575,2088.2,2087.5,0.07609174]
[1773443396139,1.19814817,2088.3,2087.8,0.07609174]
[1773443396140,0.001,2088.3,2087.8,0.07609174]
[1773443398651,0.001,2088.3,2088.0,0.07609174]
[1773443398954,0.001,2088.3,2088.1,1.505]
[1773443400077,0.001,2088.3,2088.1,1.58109174]
[1773443400493,0.48853575,2088.3,2088.1,1.505]
[1773443400859,0.48753575,2088.2,2088.1,1.505]
[1773443402173,0.48753575,2088.2,2087.0,0.07609173]
[1773443402863,0.48753575,2088.2,2087.2,0.07609173]
[1773443402864,0.48753575,2088.0,2087.2,0.07609173]
[1773443403257,0.48753575,2088.0,2087.3,1.514]
[1773443403458,0.48753575,2088.0,2087.4,0.07609173]
[1773443403855,0.48753575,2088.0,2087.3,1.514]
[1773443404786,0.48753575,2088.0,2087.4,0.07609173]
[1773443406686,0.48753575,2087.9,2087.4,1.27372954]
[1773443408087,0.001,2087.8,2087.4,1.27372954]
[1773443408397,0.001,2087.8,2087.5,0.07609173]
[1773443409288,0.001,2087.8,2087.5,1.27365373]
[1773443409499,0.001,2087.8,2087.5,1.27369084]
[1773443410292,4.78918432,2088.1,2087.5,1.27369084]
[1773443410293,0.001,2088.3,2087.8,0.07609172]
[1773443410491,0.48853575,2088.3,2087.9,0.07609172]
[1773443410665,0.48853575,2088.3,2087.9,1.59809172]
[1773443412390,0.48753575,2088.7,2088.2,0.07609172]
[1773443412595,1.19683637,2088.9,2088.2,0.07609172]
[1773443412596,1.68437212,2088.9,2088.2,0.07609172]
[1773443414297,0.001,2089.0,2088.2,0.07609172]
[1773443414475,0.001,2089.0,2088.3,1.27323772]
[1773443414476,0.48753575,2088.8,2088.3,1.27323772]